fUSD/lending_fUSD_20260418
["ID","MTS","AMOUNT","RATE_DAILY","PERIOD"]
[420679205,1776457903114,-815.073758,0.00019178,2]
[420679206,1776457903124,-815.073758,0.00019178,2]
[420679207,1776457903134,-815.073753,0.00019178,2]
[420679208,1776457903143,-400.0,0.00019178,2]
[420679209,1776457903153,-150.0,0.00019178,2]
[420679210,1776457903162,-173.90076918,0.00019178,2]
[420679211,1776457903171,-150.0,0.00019178,2]
[420679212,1776457903181,-150.0,0.00019178,2]
[420679213,1776457903190,-150.0,0.00019399,120]
[420679214,1776457903200,-1431.00041096,0.00019429,7]
[420679215,1776457903209,-362.09775007,0.00019451,7]
[420679216,1776457903218,-5641.7,0.00019452,2]
[420679217,1776457903228,-209.65,0.00019452,30]
[420679218,1776457903238,-209.64,0.00019452,30]
[420679219,1776457903247,-6000.0,0.00019463,7]
[420679220,1776457903257,-150.0,0.00019469,3]
[420679221,1776457903266,-201.78198406,0.0001948,7]
[420679222,1776457903276,-439.4,0.00019482,2]
[420679223,1776457903285,-434.25,0.000195,2]
[420679224,1776457903294,-2300.31,0.000195,2]
[420679225,1776457903303,-71871.33,0.000195,2]
[420679226,1776457903313,-150.0,0.00019505,2]
[420679227,1776457903322,-676.0,0.00019545,7]
[420679228,1776457903331,-295.563,0.000196,2]
[420679229,1776457903341,-231.23961904,0.00019615,7]
[420679230,1776457903350,-202.33466667,0.00019615,7]
[420679231,1776457903359,-19627.85,0.000197,7]
[420679232,1776457903368,-3058.52,0.000197,2]
[420679233,1776457903377,-1143.92614105,0.00019702,2]
[420679234,1776457903386,-444.75219061,0.00019702,2]
[420679235,1776457903396,-1651.40500491,0.00019702,2]
[420679236,1776457903405,-3229.3045798,0.00019702,2]
[420679237,1776457903415,-3345.36167773,0.00019702,2]
[420679238,1776457903424,-783.33441992,0.00019702,2]
[420679239,1776457903434,-539.15521052,0.00019702,2]
[420679240,1776457903443,-976.83994301,0.00019702,2]
[420679241,1776457903453,-250.0,0.00019726,2]
[420679242,1776457903462,-250.0,0.00019726,2]
[420679243,1776457903472,-250.0,0.00019726,2]
[420679244,1776457903481,-804.17102365,0.00019775,2]
[420679245,1776457903491,-1431.00041096,0.00019795,14]
[420679246,1776457903500,-150.0,0.00019833,2]
[420679247,1776457903873,-4972.60243361,0.000199,3]
[420679248,1776457903932,-70277.48261657,0.000199,2]
[420679249,1776457903941,-150.0,0.0001991,30]
[420679250,1776457903951,-219628.50372384,0.0001995,15]
[420679251,1776457903962,-66676.50324433,0.0001995,15]
[420679252,1776457903973,-150.0,0.0001999,2]
[420679253,1776457903982,-799.0,0.0002,2]
[420679254,1776457903992,-7050.21984813,0.0002,2]
[420679255,1776457904002,-1483.00484443,0.0002,5]
[420679256,1776457904011,-25811.97034327,0.0002,2]
[420679257,1776457904021,-3950.0,0.0002,2]
[420679258,1776457904030,-33157.17576385,0.0002,14]
[420679259,1776457904039,-26660.41026776,0.0002,2]
[420679260,1776457904049,-52098.90620859,0.0002,2]
[420679261,1776457904058,-13033.86624259,0.0002,2]
[420679262,1776457904068,-308.77213248,0.0002,30]
[420679263,1776457904077,-262.39941856,0.0002,30]
[420679264,1776457904087,-504.14539308,0.0002,10]
[420679265,1776457904096,-535.21952169,0.0002,7]
[420679266,1776457904106,-211.9,0.0002,2]
[420679267,1776457904115,-859.0,0.0002,2]
[420679268,1776457904125,-2676.40283336,0.0002,2]
[420679269,1776457904138,-1668.76,0.0002,30]
[420679270,1776457904147,-400.0,0.0002,7]
[420679271,1776457904157,-178.01014937,0.0002,2]
[420679272,1776457904166,-151.0,0.0002,2]
[420679273,1776457904175,-909.43454911,0.0002,7]
[420679274,1776457904184,-2972.28456075,0.0002,7]
[420679275,1776457904194,-450.0,0.0002,5]
[420679276,1776457904203,-150.0,0.0002,2]
[420679277,1776457904213,-209.65,0.0002,30]
[420679278,1776457904223,-209.64,0.0002,30]
[420679279,1776457904233,-653.081,0.0002,30]
[420679280,1776457904243,-10073.42430416,0.0002,2]
[420679281,1776457904252,-1000000.0,0.0002,2]
[420679282,1776457904262,-1000.0,0.0002,30]
[420679283,1776457904271,-467.0,0.0002,30]
[420679284,1776457904280,-2290.95729135,0.0002,7]
[420679285,1776457904290,-5548.38260092,0.0002,2]
[420679286,1776457904300,-200603.96,0.0002,7]
[420679287,1776457904309,-1546.78055704,0.0002,2]
[420679288,1776457904318,-2464.68,0.0002,2]
[420679289,1776457904328,-1305.8261813,0.0002,2]
[420679290,1776457904338,-200.0,0.0002,2]
[420679291,1776457904347,-1054.12759427,0.0002,2]
[420679292,1776457904359,-152.0,0.0002,2]
[420679293,1776457904368,-500.0,0.0002,2]
[420679294,1776457904378,-2000.0,0.0002,2]
[420679295,1776457904388,-955.0,0.0002,2]
[420679296,1776457904397,-825.0,0.0002,30]
[420679297,1776457904407,-200.0,0.0002,10]
[420679298,1776457904416,-192.86,0.0002,2]
[420679299,1776457904425,-192.86,0.0002,2]
[420679300,1776457904435,-192.86,0.0002,2]
[420679301,1776457904444,-192.86,0.0002,2]
[420679302,1776457904454,-200.0,0.0002,2]
[420679303,1776457904464,-150.0,0.0002,20]
[420679304,1776457904475,-6589.0,0.0002,2]
[420679305,1776457904485,-2000.0,0.0002001,2]
[420679306,1776457904495,-2000.0,0.0002002,2]
[420679307,1776457904505,-2804.9475,0.0002003,2]
[420679308,1776457904516,-151.39560369,0.00020039,14]
[420679309,1776457904526,-300.0,0.000201,10]
[420679310,1776457904538,-1431.00041096,0.00020162,14]
[420679311,1776457904548,-676.0,0.00020217,7]
[420679312,1776457904558,-350.0,0.00020274,2]
[420679313,1776457904567,-350.0,0.00020274,2]
[420679314,1776457904577,-350.0,0.00020274,2]
[420679315,1776457904589,-19627.85,0.000203,7]
[420679316,1776457904599,-223.0,0.00020321,2]
[420679317,1776457904610,-150.0,0.00020328,2]
[420679318,1776457904621,-4332.08,0.00020384,2]
[420679319,1776457904630,-231.23961904,0.00020394,14]
[420679320,1776457904640,-202.33466667,0.00020394,14]
[420679321,1776457904649,-175.17988553,0.0002041,30]
[420679322,1776457904658,-223.17,0.00020515,120]
[420679323,1776457904669,-1431.00041096,0.00020528,14]
[420679324,1776457904678,-209.65,0.00020548,30]
[420679325,1776457904688,-209.64,0.00020548,30]
[420679326,1776457904697,-408.16962977,0.00020652,30]
[420679327,1776457904707,-22862.53390432,0.000207,2]
[420679328,1776457904716,-5000.0,0.00020748,2]
[420679329,1776457904727,-450.0,0.00020822,2]
[420679330,1776457904736,-450.0,0.00020822,2]
[420679331,1776457904746,-450.0,0.00020822,2]
[420679332,1776457904755,-150.0,0.00020833,2]
[420679333,1776457904764,-676.0,0.00020889,8]
[420679334,1776457904774,-1431.00041096,0.00020894,14]
[420679335,1776457904784,-510.84724123,0.000209,30]
[420679336,1776457904793,-19627.85,0.000209,7]
[420679337,1776457904803,-230.2,0.000209,2]
[420679338,1776457904823,-362.09775007,0.00020927,14]
[420679339,1776457904834,-201.78198406,0.0002097,14]
[420679340,1776457904844,-172.23240083,0.00020982,14]
[420679341,1776457904854,-160.0,0.00021,7]
[420679342,1776457904865,-3058.52,0.00021,2]
[420679343,1776457904875,-4631.53166172,0.00021,45]
[420679344,1776457904884,-2300.31,0.00021,2]
[420679345,1776457904895,-150.0,0.00021,2]
[420679346,1776457904904,-20000.0,0.00021,2]
[420679347,1776457904915,-1203.62811425,0.00021,2]
[420679348,1776457904924,-198.65153508,0.00021,2]
[420679349,1776457904934,-177.673315,0.00021,45]
[420679350,1776457904945,-173.58,0.00021102,30]
[420679351,1776457904954,-231.23961904,0.00021173,14]
[420679352,1776457904964,-202.33466667,0.00021173,14]
[420679353,1776457904974,-3380.25735368,0.00021247,2]
[420679354,1776457904986,-550.0,0.0002137,2]
[420679355,1776457904997,-550.0,0.0002137,2]
[420679356,1776457905008,-550.0,0.0002137,2]
[420679357,1776457905019,-271.94228247,0.00021432,14]
[420679358,1776457905028,-500.0,0.00021433,2]
[420679359,1776457905038,-151.0,0.000215,2]
[420679360,1776457905048,-58070.51104341,0.000215,2]
[420679361,1776457905058,-224.13663858,0.000215,2]
[420679362,1776457905069,-676.0,0.00021561,9]
[420679363,1776457905078,-297.56,0.00021631,120]
[420679364,1776457905088,-5000.0,0.00021673,15]
[420679365,1776457905098,-169.73828849,0.00021679,14]
[420679366,1776457905108,-300.0,0.000218,5]
[420679367,1776457905118,-151.39560369,0.00021809,14]
[420679368,1776457905128,-268.8184849,0.00021818,14]
[420679369,1776457905138,-150.0,0.00021833,2]
[420679370,1776457905147,-415.16054718,0.0002189,2]
[420679371,1776457905158,-364.1,0.0002189,2]
[420679372,1776457905167,-283.3,0.0002189,2]
[420679373,1776457905176,-308.90449246,0.0002189,2]
[420679374,1776457905186,-254.6,0.0002189,2]
[420679375,1776457905196,-252.55404322,0.0002189,2]
[420679376,1776457905210,-227.29863889,0.0002189,2]
[420679377,1776457905220,-204.568775,0.0002189,2]
[420679378,1776457905231,-184.1118975,0.0002189,2]
[420679379,1776457905240,-165.70070775,0.0002189,2]
[420679380,1776457905251,-399.99,0.000219,2]
[420679381,1776457905261,-545.4659922,0.00021915,2]
[420679382,1776457905271,-5000.0,0.00021918,2]
[420679383,1776457905281,-1000.52,0.00021918,2]
[420679384,1776457905291,-500.0,0.00021918,2]
[420679385,1776457905301,-557.75423034,0.00021918,2]
[420679386,1776457905311,-3062.47,0.00021918,2]
[420679387,1776457905321,-151.0,0.00021918,2]
[420679388,1776457905330,-151.0,0.00021918,2]
[420679389,1776457905340,-151.0,0.00021918,2]
[420679390,1776457905350,-151.0,0.00021918,2]
[420679391,1776457905360,-151.0,0.00021918,2]
[420679392,1776457905371,-151.0,0.00021918,2]
[420679393,1776457905381,-151.0,0.00021918,2]
[420679394,1776457905391,-151.0,0.00021918,2]
[420679395,1776457905401,-151.0,0.00021918,2]
[420679396,1776457905412,-151.0,0.00021918,2]
[420679397,1776457905422,-151.0,0.00021918,2]
[420679398,1776457905432,-287.72487,0.00021918,2]
[420679399,1776457905442,-283.185108,0.00021918,2]
[420679400,1776457905453,-283.185108,0.00021918,2]
[420679401,1776457905463,-283.185108,0.00021918,2]
[420679402,1776457905473,-283.185108,0.00021918,2]
[420679403,1776457905483,-283.185108,0.00021918,2]
[420679404,1776457905493,-283.185108,0.00021918,2]
[420679405,1776457905503,-283.185108,0.00021918,2]
[420679406,1776457905512,-283.185108,0.00021918,2]
[420679407,1776457905522,-283.185108,0.00021918,2]
[420679408,1776457905532,-283.185108,0.00021918,2]
[420679409,1776457905542,-283.185108,0.00021918,2]
[420679410,1776457905551,-283.185108,0.00021918,2]
[420679411,1776457905561,-283.185108,0.00021918,2]
[420679412,1776457905571,-283.185108,0.00021918,2]
[420679413,1776457905583,-283.185108,0.00021918,2]
[420679414,1776457905593,-283.185108,0.00021918,2]
[420679415,1776457905607,-283.185108,0.00021918,2]
[420679416,1776457905617,-283.185108,0.00021918,2]
[420679417,1776457905627,-283.185108,0.00021918,2]
[420679418,1776457905636,-283.185104,0.00021918,2]
[420679419,1776457905647,-209.65,0.00021918,30]
[420679420,1776457905657,-209.64,0.00021918,30]
[420679421,1776457905668,-1200.0,0.00021918,2]
[420679422,1776457905678,-1200.0,0.00021918,2]
[420679423,1776457905687,-1200.0,0.00021918,2]
[420679424,1776457905697,-1200.0,0.00021918,2]
[420679425,1776457905707,-1200.0,0.00021918,2]
[420679426,1776457905717,-700.00656447,0.00021918,2]
[420679427,1776457905727,-1200.0,0.00021918,2]
[420679428,1776457905737,-1200.0,0.00021918,2]
[420679429,1776457905747,-1200.0,0.00021918,2]
[420679430,1776457905756,-1200.0,0.00021918,2]
[420679431,1776457905766,-1200.0,0.00021918,2]
[420679432,1776457905776,-1200.0,0.00021918,2]
[420679433,1776457905786,-1200.0,0.00021918,2]
[420679434,1776457905796,-1200.0,0.00021918,2]
[420679435,1776457905806,-650.0,0.00021918,2]
[420679436,1776457905816,-650.0,0.00021918,2]
[420679437,1776457905826,-650.0,0.00021918,2]
[420679438,1776457905836,-166.0,0.00021918,2]
[420679439,1776457905847,-166.0,0.00021918,2]
[420679440,1776457905856,-166.0,0.00021918,2]
[420679441,1776457905866,-166.0,0.00021918,2]
[420679442,1776457905877,-166.0,0.00021918,2]
[420679443,1776457905887,-166.0,0.00021918,2]
[420679444,1776457905897,-166.0,0.00021918,2]
[420679445,1776457905907,-166.0,0.00021918,2]
[420679446,1776457905917,-172.0,0.00021918,2]
[420679447,1776457905927,-3388.0,0.00021918,10]
[420679448,1776457905937,-2998.24275762,0.00021918,10]
[420679449,1776457905948,-197.99,0.00021918,2]
[420679450,1776457905958,-205.87,0.00021925,2]
[420679451,1776457905969,-231.23961904,0.00021952,14]
[420679452,1776457905978,-202.33466667,0.00021952,14]
[420679453,1776457905988,-150.0,0.00021954,2]
[420679454,1776457906002,-2016.7408084,0.00022,2]
[420679455,1776457906012,-3601.16402377,0.00022,30]
[420679456,1776457906022,-808.76136369,0.00022,7]
[420679457,1776457906032,-11112.74953282,0.00022,4]
[420679458,1776457906042,-400.0,0.00022,7]
[420679459,1776457906052,-1000.0,0.00022,22]
[420679460,1776457906062,-151.0,0.00022,2]
[420679461,1776457906072,-434.25,0.00022,7]
[420679462,1776457906081,-71871.33,0.00022,7]
[420679463,1776457906091,-656.67874898,0.00022,2]
[420679464,1776457906100,-1000000.0,0.00022,2]
[420679465,1776457906110,-164.92,0.00022,2]
[420679466,1776457906119,-160.0,0.00022,2]
[420679467,1776457906129,-894.53,0.00022,30]
[420679468,1776457906139,-913.4228091,0.00022,2]
[420679469,1776457906149,-151.0,0.000221,2]
[420679470,1776457906159,-499.06360792,0.000221,2]
[420679471,1776457906169,-242.53373397,0.0002211,2]
[420679472,1776457906179,-3088.52,0.00022222,30]
[420679473,1776457906188,-676.0,0.00022232,9]
[420679474,1776457906198,-825.0,0.0002224,30]
[420679475,1776457906208,-406.45844742,0.00022286,30]
[420679476,1776457906218,-152.0,0.00022313,3]
[420679477,1776457906227,-394.0,0.00022369,2]
[420679478,1776457906237,-785.56489598,0.00022384,30]
[420679479,1776457906247,-347.16,0.0002239,30]
[420679480,1776457906257,-362.09775007,0.00022402,30]
[420679481,1776457906267,-201.78198406,0.0002246,30]
[420679482,1776457906278,-750.0,0.00022466,2]
[420679483,1776457906288,-750.0,0.00022466,2]
[420679484,1776457906297,-750.0,0.00022466,2]
[420679485,1776457906307,-785.56489598,0.00022493,30]
[420679486,1776457906590,-151.0,0.000225,2]
[420679487,1776457906599,-35841.1579443,0.000225,2]
[420679488,1776457906608,-833.92535153,0.00022514,2]
[420679489,1776457906618,-785.56489598,0.00022575,30]
[420679490,1776457906627,-3639.48014121,0.000226,2]
[420679491,1776457906636,-785.56489598,0.00022658,30]
[420679492,1776457906645,-528.27032934,0.0002271,2]
[420679493,1776457906654,-231.23961904,0.00022731,30]
[420679494,1776457906663,-202.33466667,0.00022731,30]
[420679495,1776457906673,-371.95,0.00022747,120]
[420679496,1776457906682,-785.56489598,0.00022767,30]
[420679497,1776457906691,-150.0,0.00022833,2]
[420679498,1776457906700,-785.56489598,0.00022849,30]
[420679499,1776457906710,-44828.87429991,0.000229,30]
[420679500,1776457906719,-676.0,0.00022904,10]
[420679501,1776457906729,-785.56489598,0.00022932,30]
[420679502,1776457906738,-644.90681114,0.00023,7]
[420679503,1776457906747,-151.0,0.00023,2]
[420679504,1776457906757,-310742.46079033,0.00023,2]
[420679505,1776457906766,-3357.50014377,0.00023,2]
[420679506,1776457906775,-1500.0,0.00023,14]
[420679507,1776457906783,-1500.0,0.00023,14]
[420679508,1776457906792,-1500.0,0.00023,14]
[420679509,1776457906801,-1500.0,0.00023,14]
[420679510,1776457906810,-1500.0,0.00023,14]
[420679511,1776457906820,-1500.0,0.00023,14]
[420679512,1776457906829,-1500.0,0.00023,14]
[420679513,1776457906838,-1500.0,0.00023,14]
[420679514,1776457906847,-1500.0,0.00023,14]
[420679515,1776457906856,-1500.0,0.00023,14]
[420679516,1776457906866,-1500.0,0.00023,14]
[420679517,1776457906875,-1500.0,0.00023,14]
[420679518,1776457906884,-1500.0,0.00023,14]
[420679519,1776457906894,-1500.0,0.00023,14]
[420679520,1776457906903,-1500.0,0.00023,14]
[420679521,1776457906912,-1500.0,0.00023,14]
[420679522,1776457906921,-1500.0,0.00023,14]
[420679523,1776457906930,-1500.0,0.00023,14]
[420679524,1776457906939,-1500.0,0.00023,14]
[420679525,1776457906948,-1500.0,0.00023,14]
[420679526,1776457906957,-1500.0,0.00023,14]
[420679527,1776457906966,-1500.0,0.00023,14]
[420679528,1776457906976,-1500.0,0.00023,14]
[420679529,1776457906986,-1500.0,0.00023,14]
[420679530,1776457906998,-1500.0,0.00023,14]
[420679531,1776457907007,-1500.0,0.00023,14]
[420679532,1776457907016,-1500.0,0.00023,14]
[420679533,1776457907025,-1500.0,0.00023,14]
[420679534,1776457907034,-1500.0,0.00023,14]
[420679535,1776457907043,-1500.0,0.00023,14]
[420679536,1776457907052,-1500.0,0.00023,14]
[420679537,1776457907061,-1500.0,0.00023,14]
[420679538,1776457907071,-1500.0,0.00023,14]
[420679539,1776457907080,-1500.0,0.00023,14]
[420679540,1776457907089,-1500.0,0.00023,14]
[420679541,1776457907098,-1500.0,0.00023,14]
[420679542,1776457907107,-1500.0,0.00023,14]
[420679543,1776457907116,-1500.0,0.00023,14]
[420679544,1776457907126,-1500.0,0.00023,14]
[420679545,1776457907135,-1500.0,0.00023,14]
[420679546,1776457907145,-1500.0,0.00023,14]
[420679547,1776457907154,-1500.0,0.00023,14]
[420679548,1776457907165,-1500.0,0.00023,14]
[420679549,1776457907176,-1500.0,0.00023,14]
[420679550,1776457907186,-1500.0,0.00023,14]
[420679551,1776457907195,-1500.0,0.00023,14]
[420679552,1776457907204,-1500.0,0.00023,14]
[420679553,1776457907214,-1500.0,0.00023,14]
[420679554,1776457907223,-1500.0,0.00023,14]
[420679555,1776457907231,-1500.0,0.00023,14]
[420679556,1776457907242,-1500.0,0.00023,14]
[420679557,1776457907252,-1500.0,0.00023,14]
[420679558,1776457907261,-1500.0,0.00023,14]
[420679559,1776457907271,-1500.0,0.00023,14]
[420679560,1776457907280,-1500.0,0.00023,14]
[420679561,1776457907289,-1500.0,0.00023,14]
[420679562,1776457907298,-1500.0,0.00023,14]
[420679563,1776457907308,-1500.0,0.00023,14]
[420679564,1776457907318,-1500.0,0.00023,14]
[420679565,1776457907328,-1500.0,0.00023,14]
[420679566,1776457907338,-1500.0,0.00023,14]
[420679567,1776457907348,-1500.0,0.00023,14]
[420679568,1776457907359,-1500.0,0.00023,14]
[420679569,1776457907369,-1500.0,0.00023,14]
[420679570,1776457907378,-1500.0,0.00023,14]
[420679571,1776457907388,-1500.0,0.00023,14]
[420679572,1776457907399,-1500.0,0.00023,14]
[420679573,1776457907408,-1500.0,0.00023,14]
[420679574,1776457907418,-1500.0,0.00023,14]
[420679575,1776457907429,-1500.0,0.00023,14]
[420679576,1776457907439,-1500.0,0.00023,14]
[420679577,1776457907448,-1500.0,0.00023,14]
[420679578,1776457907459,-1500.0,0.00023,14]
[420679579,1776457907470,-1500.0,0.00023,14]
[420679580,1776457907480,-1500.0,0.00023,14]
[420679581,1776457907489,-1500.0,0.00023,14]
[420679582,1776457907498,-1500.0,0.00023,14]
[420679583,1776457907508,-1500.0,0.00023,14]
[420679584,1776457907517,-1500.0,0.00023,14]
[420679585,1776457907529,-1500.0,0.00023,14]
[420679586,1776457907539,-1500.0,0.00023,14]
[420679587,1776457907549,-1500.0,0.00023,14]
[420679588,1776457907558,-1500.0,0.00023,14]
[420679589,1776457907571,-1500.0,0.00023,14]
[420679590,1776457907580,-1500.0,0.00023,14]
[420679591,1776457907590,-1500.0,0.00023,14]
[420679592,1776457907600,-1500.0,0.00023,14]
[420679593,1776457907611,-1500.0,0.00023,14]
[420679594,1776457907621,-1500.0,0.00023,14]
[420679595,1776457907631,-1500.0,0.00023,14]
[420679596,1776457907641,-1500.0,0.00023,14]
[420679597,1776457907651,-1500.0,0.00023,14]
[420679598,1776457907661,-1500.0,0.00023,14]
[420679599,1776457907671,-1500.0,0.00023,14]
[420679600,1776457907680,-1500.0,0.00023,14]
[420679601,1776457907690,-1500.0,0.00023,14]
[420679602,1776457907699,-1500.0,0.00023,14]
[420679603,1776457907708,-1500.0,0.00023,14]
[420679604,1776457907717,-1500.0,0.00023,14]
[420679605,1776457907727,-1500.0,0.00023,14]
[420679606,1776457907735,-500.0,0.00023,120]
[420679607,1776457907746,-785.56489598,0.00023014,30]
[420679608,1776457907756,-220.95990073,0.00023014,2]
[420679609,1776457907765,-850.0,0.00023014,2]
[420679610,1776457907775,-850.0,0.00023014,2]
[420679611,1776457907785,-785.56489598,0.00023123,30]
[420679612,1776457907794,-2412.37307473,0.0002314,2]
[420679613,1776457907804,-1607.33191015,0.0002314,2]
[420679614,1776457907814,-1058.7,0.0002315,2]
[420679615,1776457907823,-1200.09227703,0.000232,2]
[420679616,1776457907832,-785.56489598,0.00023205,30]
[420679617,1776457907842,-172.23240083,0.00023223,30]
[420679618,1776457907851,-785.56489598,0.00023288,30]
[420679619,1776457907861,-674.21,0.00023288,120]
[420679620,1776457907871,-785.56489598,0.00023397,30]
[420679621,1776457907880,-223.82781849,0.00023418,2]
[420679622,1776457907890,-258.0,0.00023418,2]
[420679623,1776457907899,-6000.0,0.00023463,7]
[420679624,1776457907908,-399.999999,0.000235,2]
[420679625,1776457907917,-3868.24480588,0.000235,30]
[420679626,1776457907927,-231.23961904,0.00023509,30]
[420679627,1776457907936,-202.33466667,0.0002351,30]
[420679628,1776457907945,-674.21,0.00023534,120]
[420679629,1776457907954,-950.0,0.00023562,2]
[420679630,1776457907963,-950.0,0.00023562,2]
[420679631,1776457907973,-676.0,0.00023576,10]
[420679632,1776457907983,-151.39560369,0.00023579,30]
[420679633,1776457907992,-520.73,0.00023678,30]
[420679634,1776457908003,-500.0,0.00023685,120]
[420679635,1776457908013,-150.0,0.00023711,2]
[420679636,1776457908022,-260.82019996,0.00023727,40]
[420679637,1776457908031,-674.21,0.00023781,120]
[420679638,1776457908041,-24262.23683843,0.000238,2]
[420679639,1776457908050,-150.0,0.00023833,2]
[420679640,1776457908059,-446.34,0.00023863,120]
[420679641,1776457908069,-150.0,0.0002399,2]
[420679642,1776457908078,-4702.0,0.00024,2]
[420679643,1776457908088,-1000.0,0.00024,24]
[420679644,1776457908097,-151.0,0.00024,2]
[420679645,1776457908107,-1032.28561142,0.00024,2]
[420679646,1776457908116,-3600.0,0.00024,2]
[420679647,1776457908125,-1248.08138565,0.00024,2]
[420679648,1776457908135,-1051.26344112,0.00024,2]
[420679649,1776457908144,-674.21,0.00024027,120]
[420679650,1776457908153,-173.8801333,0.00024052,40]
[420679651,1776457908163,-1050.0,0.0002411,2]
[420679652,1776457908172,-1050.0,0.0002411,2]
[420679653,1776457908184,-3735.47101264,0.0002421,2]
[420679654,1776457908194,-676.0,0.00024247,11]
[420679655,1776457908203,-12811.08306698,0.00024249,2]
[420679656,1776457908213,-674.21,0.00024274,120]
[420679657,1776457908225,-433.15,0.00024427,2]
[420679658,1776457908234,-825.0,0.0002448,60]
[420679659,1776457908243,-674.21,0.00024521,120]
[420679660,1776457908252,-500.0,0.00024589,120]
[420679661,1776457908262,-921.8,0.0002463,30]
[420679662,1776457908271,-424.2,0.0002463,30]
[420679663,1776457908281,-1484.33333333,0.0002463,30]
[420679664,1776457908290,-1484.33333333,0.0002463,30]
[420679665,1776457908300,-2390.32876149,0.0002463,30]
[420679666,1776457908310,-796.77625383,0.0002463,30]
[420679667,1776457908318,-265.59208461,0.0002463,30]
[420679668,1776457908328,-209.25,0.0002463,2]
[420679669,1776457908337,-209.15,0.0002463,2]
[420679670,1776457908347,-213.3,0.0002463,2]
[420679671,1776457908357,-173.0,0.0002463,2]
[420679672,1776457908366,-717.63802371,0.0002463,2]
[420679673,1776457908376,-162.25,0.0002463,2]
[420679674,1776457908389,-160.15,0.0002463,2]
[420679675,1776457908399,-248.3,0.0002463,2]
[420679676,1776457908408,-180.5,0.0002463,2]
[420679677,1776457908417,-1785.5,0.0002463,2]
[420679678,1776457908426,-2225.0,0.0002463,2]
[420679679,1776457908435,-1943.0,0.0002463,2]
[420679680,1776457908444,-2353.5,0.0002463,2]
[420679681,1776457908454,-1464.5,0.0002463,2]
[420679682,1776457908463,-1814.5,0.0002463,2]
[420679683,1776457908472,-1545.5,0.0002463,2]
[420679684,1776457908482,-1010.0,0.0002463,2]
[420679685,1776457908491,-1260.5,0.0002463,2]
[420679686,1776457908500,-170.0059045,0.0002465,2]
[420679687,1776457908509,-1150.0,0.00024658,2]
[420679688,1776457908518,-1049.91920109,0.00024658,2]
[420679689,1776457908527,-151.0,0.00024658,2]
[420679690,1776457908536,-151.0,0.00024658,2]
[420679691,1776457908545,-151.0,0.00024658,2]
[420679692,1776457908555,-151.0,0.00024658,2]
[420679693,1776457908564,-151.0,0.00024658,2]
[420679694,1776457908574,-151.0,0.00024658,2]
[420679695,1776457908584,-151.0,0.00024658,2]
[420679696,1776457908594,-173.101975,0.00024658,2]
[420679697,1776457908603,-207.070983,0.00024658,2]
[420679698,1776457908612,-207.070983,0.00024658,2]
[420679699,1776457908622,-207.070983,0.00024658,2]
[420679700,1776457908631,-207.070983,0.00024658,2]
[420679701,1776457908641,-207.070983,0.00024658,2]
[420679702,1776457908651,-207.070983,0.00024658,2]
[420679703,1776457908663,-207.070983,0.00024658,2]
[420679704,1776457908672,-207.070983,0.00024658,2]